bitfinex-derivatives/quotes_SOLF0:USTF0_20230402
["timestamp","ask_amount","ask_price","bid_price","bid_amount"]
[1680449702545,14.5,20.577,20.57,0.06773066]
[1680449708450,14.5,20.575,20.57,0.06773066]
[1680449708747,14.5,20.58,20.565,0.06920029]
[1680449708748,14.5,20.572,20.565,0.06920029]
[1680449708947,14.47,20.569,20.565,0.06920029]
[1680449709150,14.47,20.569,20.563,46.2461]
[1680449711248,0.06059956,20.576,20.563,46.2461]
[1680449711249,14.5,20.572,20.563,46.2461]
[1680449713550,14.47,20.573,20.563,46.2461]
[1680449716147,0.06059956,20.576,20.564,14.52]
[1680449716352,14.58059956,20.576,20.564,14.52]
[1680449718856,14.47,20.572,20.563,46.2461]
[1680449722059,14.47,20.574,20.563,60.6861]
[1680449722460,14.47,20.574,20.563,75.46817584]
[1680449724769,14.47,20.572,20.563,61.02817584]
[1680449724969,14.43,20.575,20.564,14.52]
[1680449725368,18.36025597,20.574,20.564,14.52]
[1680449727864,14.52,20.568,20.556,14.52]
[1680449728072,14.52,20.565,20.553,61.0175]
[1680449728266,18.36025597,20.564,20.553,14.44]
[1680449730072,14.47,20.562,20.551,0.07020429]
[1680449732274,14.47,20.56,20.551,0.07020429]
[1680449738471,63.167,20.563,20.551,14.51020429]
[1680449744788,63.097,20.563,20.551,14.60020429]
[1680449756189,0.06344075,20.566,20.552,100.0]
[1680449756394,14.93357658,20.574,20.563,14.53]
[1680449756594,100.0,20.582,20.563,14.53]
[1680449756896,14.4,20.578,20.566,14.53]
[1680449758595,18.37777054,20.577,20.566,14.53]
[1680449761999,14.42,20.576,20.565,14.59989149]
[1680449762502,14.46009609,20.579,20.568,14.44]
[1680449762702,18.38034354,20.578,20.568,14.44]
[1680449762901,18.38034354,20.578,20.571,14.53]
[1680449763102,0.06009609,20.579,20.571,14.53]
[1680449763600,0.06009609,20.579,20.569,5.0]
[1680449763794,0.06009609,20.579,20.574,14.53]
[1680449763998,47.65411505,20.584,20.574,14.53]
[1680449768097,14.4,20.582,20.57,14.44]
[1680449769701,14.4,20.579,20.569,0.06961507]
[1680449771905,14.4,20.576,20.569,0.06961507]
[1680449774806,14.42,20.57,20.557,19.44]
[1680449774999,14.42,20.57,20.557,14.44]
[1680449775301,14.4,20.571,20.56,14.44]
[1680449775504,14.52,20.571,20.56,14.52]
[1680449776107,0.07063859,20.573,20.564,14.39]
[1680449777407,14.52,20.571,20.56,14.47]
[1680449789123,0.07063859,20.573,20.564,14.39]
[1680449789324,0.07063859,20.573,20.565,49.1697]
[1680449803834,0.07063859,20.573,20.567,14.52]
[1680449804033,0.06898571,20.577,20.567,14.52]
[1680449806231,0.06898571,20.577,20.567,14.41]
[1680449810833,0.06898571,20.577,20.57,14.41]
[1680449811236,14.51,20.581,20.57,14.41]
[1680449811436,14.51,20.585,20.573,14.43]
[1680449811632,18.38526679,20.584,20.573,14.43]
[1680449813239,14.51,20.585,20.573,14.43]
[1680449815138,18.37875466,20.584,20.573,14.43]
[1680449816339,14.51,20.585,20.573,14.43]
[1680449817639,0.06345111,20.586,20.577,14.41]
[1680449825148,0.06345111,20.586,20.58,14.51]
[1680449825340,0.06004401,20.59,20.58,14.51]
[1680449826042,0.06004401,20.59,20.581,45.9982]
[1680449833450,0.06004401,20.59,20.576,0.0639435]
[1680449833451,14.51,20.582,20.576,0.0639435]
[1680449833646,14.51,20.582,20.573,60.22506138]
[1680449833852,14.51,20.582,20.573,45.9892]
[1680449834247,0.06468762,20.585,20.573,45.9892]
[1680449834248,14.51,20.579,20.573,45.9892]
[1680449834849,14.51,20.581,20.573,45.9892]
[1680449836756,14.51,20.579,20.573,45.9892]
[1680449837955,14.39,20.582,20.573,45.9892]
[1680449838653,0.06468762,20.585,20.574,14.51]
[1680449838654,14.52468762,20.585,20.574,14.51]
[1680449842160,0.06468762,20.585,20.575,14.51]
[1680449844757,14.51,20.582,20.573,45.9892]
[1680449847759,14.51,20.579,20.573,45.9892]
[1680449854265,14.51,20.584,20.573,60.4192]
[1680449854464,18.38259282,20.583,20.573,60.4192]
[1680449855563,0.06468762,20.585,20.576,14.51]
[1680449855765,0.06468762,20.585,20.579,14.51]
[1680449856065,0.0669966,20.589,20.579,14.51]
[1680449861462,14.46,20.588,20.577,0.06435465]
[1680449861670,14.39,20.581,20.577,0.06435465]
[1680449861870,14.39,20.581,20.573,45.9892]
[1680449867168,14.51,20.577,20.572,0.06875231]
[1680449867473,14.39,20.575,20.57,14.56534654]
[1680449867671,14.41,20.575,20.567,0.06975721]
[1680449874483,14.52,20.574,20.567,0.06975721]
[1680449877185,14.48525976,20.58,20.569,14.52]
[1680449880490,14.42,20.577,20.567,14.37740906]
[1680449881989,14.41,20.575,20.567,14.37740906]
[1680449892398,14.58525976,20.58,20.567,0.06975721]
[1680449892399,14.52,20.571,20.567,0.06975721]
[1680449892597,14.52,20.571,20.566,14.35304935]
[1680449892798,14.52,20.571,20.563,44.9968]
[1680449896800,14.41,20.568,20.562,0.07019868]
[1680449897000,14.41,20.568,20.558,0.06279701]
[1680449898601,14.45,20.568,20.558,0.06279701]
[1680449899201,0.06088099,20.57,20.56,14.53]
[1680449899602,0.06088099,20.57,20.564,14.47]
[1680449899802,0.06325714,20.574,20.564,14.47]
[1680449900500,0.06325714,20.574,20.565,48.3369]
[1680449904104,14.45,20.573,20.565,48.3369]
[1680449905505,0.06325714,20.574,20.565,62.8669]
[1680449906809,0.06325714,20.574,20.567,14.39]
[1680449911513,0.06325714,20.574,20.568,5.0]
[1680449911812,0.06835428,20.578,20.568,5.0]
[1680449912012,0.06835428,20.578,20.57,14.53]
[1680449913311,14.59835428,20.578,20.567,14.39]
[1680449913512,14.59835428,20.578,20.567,19.39]
[1680449913711,0.06835428,20.578,20.57,14.47]
[1680449917416,0.06835428,20.578,20.567,14.47]
[1680449922021,14.4,20.577,20.567,14.47]
[1680449924424,0.06835428,20.578,20.57,14.53]
[1680449930030,0.06835428,20.578,20.57,14.43]
[1680449936628,0.06835428,20.578,20.566,19.49477964]
[1680449936629,14.51,20.577,20.566,19.49477964]
[1680449937032,14.51,20.577,20.566,14.49477964]
[1680449938946,0.06835428,20.578,20.569,14.43]
[1680449942241,14.37,20.576,20.566,0.06477964]
[1680449946948,0.06835428,20.578,20.567,14.51]
[1680449947142,0.06835428,20.578,20.568,44.3624]
[1680449947342,18.43924008,20.578,20.568,44.3624]
[1680449947647,0.06835428,20.578,20.571,14.51]
[1680449951048,0.06835428,20.578,20.574,14.51]
[1680449951345,0.06556032,20.583,20.574,14.51]
[1680449951751,14.44,20.582,20.571,0.0713826]
[1680449951952,18.37521051,20.581,20.571,0.0713826]
[1680449954752,14.44,20.582,20.571,0.0713826]
[1680449956353,0.06556032,20.583,20.575,14.43]
[1680449956556,0.06556032,20.583,20.576,48.6628]
[1680449956750,0.06556032,20.583,20.578,14.51]
[1680449956954,0.06214303,20.588,20.578,14.51]
[1680449959756,14.5,20.587,20.576,48.73228902]
[1680449962461,0.06214303,20.588,20.578,14.41]
[1680449967460,0.06214303,20.588,20.581,14.4]
[1680449991175,0.06214303,20.588,20.58,14.49]
[1680449991378,0.06214303,20.588,20.583,14.49]
[1680449991572,0.06178966,20.593,20.583,14.49]
[1680449991772,18.42998014,20.593,20.583,14.49]
[1680450005084,14.39,20.59,20.581,0.06783409]
[1680450005282,14.39,20.587,20.581,0.06783409]
[1680450005583,14.39,20.587,20.577,0.0642147]
[1680450008082,14.49,20.583,20.577,0.0642147]
[1680450008387,14.49,20.583,20.573,0.06095964]
[1680450009785,14.39,20.579,20.573,0.06095964]
[1680450010087,14.41,20.576,20.569,0.06692731]
[1680450014185,14.47248333,20.58,20.569,14.55692731]
[1680450015094,14.41,20.577,20.569,0.06692731]
[1680450021303,14.48,20.577,20.569,0.06692731]
[1680450023194,14.39,20.575,20.569,0.06692731]
[1680450023501,14.57248333,20.58,20.566,60.5577]
[1680450023502,14.39,20.578,20.566,60.5577]
[1680450026801,14.39,20.578,20.566,46.1477]
[1680450027004,14.39,20.578,20.565,14.47584839]
[1680450027005,14.39,20.571,20.565,14.47584839]
[1680450027201,14.55248333,20.58,20.565,14.4140447]
[1680450027202,14.39,20.568,20.565,14.4140447]
[1680450027397,14.39,20.568,20.559,0.07021065]
[1680450027597,14.51,20.566,20.557,8.92891971]
[1680450027801,0.06147378,20.571,20.558,8.92891971]
[1680450027802,14.51,20.568,20.558,8.92891971]
[1680450028001,14.51,20.568,20.556,14.57578172]
[1680450028302,14.45147378,20.571,20.56,14.37]
[1680450030607,14.39,20.568,20.556,14.57578172]
[1680450030806,14.39,20.568,20.557,8.92813574]
[1680450031305,14.39,20.565,20.557,8.92813574]
[1680450031504,14.39,20.565,20.556,0.06578172]
[1680450031505,14.39,20.565,20.558,8.92813574]
[1680450031706,14.39,20.565,20.556,0.06578172]
[1680450036613,14.48,20.558,20.556,0.06578172]
[1680450036815,14.48,20.558,20.552,14.54756026]
[1680450037007,14.48,20.558,20.548,0.07009819]
[1680450037213,14.48,20.558,20.548,9.00199805]
[1680450038016,48.65754713,20.562,20.548,9.00199805]
[1680450038208,14.51,20.556,20.548,9.00199805]
[1680450038606,14.51,20.556,20.548,0.07009819]
[1680450041316,14.39,20.552,20.548,0.07009819]
[1680450041609,14.39,20.552,20.546,14.78549237]
[1680450041814,14.39,20.552,20.543,0.06482628]
[1680450042015,14.39,20.552,20.543,9.00005545]
[1680450042212,14.39,20.552,20.544,8.93522917]
[1680450042516,14.39,20.552,20.543,0.06482628]
[1680450042517,14.39,20.552,20.545,8.93522917]
[1680450042715,14.39,20.552,20.543,0.06482628]
[1680450043015,14.24214802,20.552,20.543,0.06482628]
[1680450045920,14.51,20.55,20.543,0.06482628]
[1680450052718,14.41,20.551,20.543,0.06482628]
[1680450054621,45.0362,20.553,20.548,14.55]
[1680450054821,0.06526858,20.557,20.548,14.55]
[1680450056315,14.47526858,20.557,20.546,14.55]
[1680450057123,14.47526858,20.557,20.547,8.9339968]
[1680450062027,0.06526858,20.557,20.547,23.4539968]
[1680450062228,0.06526858,20.557,20.547,14.52]
[1680450064129,0.06526858,20.557,20.543,5.06482628]
[1680450064130,0.06526858,20.557,20.55,14.48]
[1680450064327,48.6804,20.566,20.553,14.55]
[1680450064527,48.6804,20.566,20.556,14.52]
[1680450065030,48.6804,20.566,20.557,5.0]
[1680450066629,48.6804,20.566,20.556,14.52]
[1680450072036,48.6804,20.566,20.557,14.55]
[1680450073831,48.6804,20.566,20.554,0.07008831]
[1680450074039,14.55,20.559,20.554,0.07008831]
[1680450074337,14.55,20.559,20.549,0.06149002]
[1680450079031,48.6618,20.558,20.549,0.06149002]
[1680450082139,63.0718,20.558,20.549,0.06149002]
[1680450083542,63.2018,20.558,20.549,0.06149002]
[1680450085844,14.54,20.552,20.549,0.06149002]
[1680450086047,14.54,20.552,20.543,0.06603056]
[1680450087444,14.54,20.549,20.543,0.06603056]
[1680450087647,14.54,20.549,20.539,14.00678673]
[1680450087850,14.54,20.549,20.539,0.06954124]
[1680450088044,14.54,20.549,20.539,9.00678277]
[1680450089147,14.54,20.549,20.539,0.06954124]
[1680450089551,47.0688,20.548,20.539,0.06954124]
[1680450090354,47.0688,20.548,20.539,9.00680423]
[1680450090945,47.0688,20.548,20.539,0.06954124]
[1680450091152,14.54,20.552,20.541,114.54]
[1680450091353,0.06188102,20.553,20.544,14.45]
[1680450091552,0.06188102,20.553,20.545,8.93643924]
[1680450092052,0.06188102,20.553,20.546,14.45]
[1680450095453,0.06188102,20.553,20.541,100.0]
[1680450095454,0.06188102,20.553,20.543,14.45]
[1680450095753,0.06188102,20.553,20.544,8.93493159]
[1680450097354,0.06188102,20.553,20.542,5.0]
[1680450097553,0.06188102,20.553,20.543,8.93497476]
[1680450097853,0.06188102,20.553,20.544,8.93497476]
[1680450098054,0.06188102,20.553,20.545,8.93497476]
[1680450098256,0.06188102,20.553,20.542,8.93497476]
[1680450098449,0.06188102,20.553,20.545,21.67]
[1680450098653,0.06188102,20.553,20.546,8.93492463]
[1680450098854,0.06188102,20.553,20.545,21.67]
[1680450102059,0.06188102,20.553,20.543,21.67]
[1680450102359,0.06188102,20.553,20.545,5.0]
[1680450103558,0.06188102,20.553,20.544,5.0]
[1680450103961,0.06188102,20.553,20.545,8.93404191]
[1680450105962,0.06188102,20.553,20.543,21.67]
[1680450106164,0.06188102,20.553,20.544,8.93485229]
[1680450110666,0.06188102,20.553,20.546,21.8]
[1680450112058,0.06188102,20.553,20.544,21.82]
[1680450112254,0.06188102,20.553,20.545,8.93401822]
[1680450117161,0.06188102,20.553,20.548,21.81]
[1680450117366,0.07023823,20.558,20.548,21.81]
[1680450118162,0.07023823,20.558,20.549,44.6472]
[1680450126767,0.07023823,20.558,20.549,66.2672]
[1680450126970,0.07023823,20.558,20.55,5.0]
[1680450129975,0.07023823,20.558,20.552,21.76]
[1680450130176,0.07037048,20.562,20.553,5.0]
[1680450130377,0.06087442,20.565,20.553,5.0]
[1680450132376,0.06087442,20.565,20.552,21.76]
[1680450135572,0.06087442,20.565,20.555,21.73]
[1680450135776,0.06087442,20.565,20.559,21.62]
[1680450135977,0.06235675,20.569,20.559,21.62]
[1680450136176,0.06067981,20.571,20.559,21.62]
[1680450136980,0.06067981,20.571,20.562,21.81]
[1680450139378,18.42104013,20.576,20.562,21.81]
[1680450140479,0.06318609,20.576,20.565,21.62]
[1680450140679,0.06318609,20.576,20.568,21.76]
[1680450141983,0.06318609,20.576,20.57,21.76]
[1680450142184,0.06457786,20.58,20.57,21.76]
[1680450142383,18.42122311,20.58,20.57,21.76]
[1680450142584,18.42122311,20.579,20.57,21.76]
[1680450142787,0.06685309,20.582,20.568,0.06876232]
[1680450142788,21.87685309,20.582,20.568,0.06876232]
[1680450142988,18.42114835,20.581,20.568,0.06876232]
[1680450145984,21.66,20.578,20.568,0.06876232]
[1680450149190,21.68,20.576,20.568,0.06876232]
[1680450151885,21.71,20.573,20.568,0.06876232]
[1680450152090,21.68,20.571,20.563,0.06653215]
[1680450162105,14.44,20.569,20.563,0.06653215]
[1680450162307,14.44,20.569,20.559,0.06530067]
[1680450163100,14.51,20.572,20.561,14.53]
[1680450167707,14.51,20.569,20.559,0.06530067]
[1680450171111,14.51,20.571,20.559,14.59530067]
[1680450172011,14.53,20.568,20.559,0.06530067]
[1680450179617,14.53,20.565,20.559,0.06530067]
[1680450179811,14.53,20.565,20.555,49.18609343]
[1680450189821,14.49,20.561,20.555,0.06079343]
[1680450190020,14.49,20.561,20.551,0.06837314]
[1680450192526,14.49,20.561,20.551,14.58837314]
[1680450192822,63.1516,20.562,20.551,14.58837314]
[1680450193917,0.06259391,20.563,20.554,14.52]
[1680450196026,0.06259391,20.563,20.555,47.8158]
[1680450202035,0.06259391,20.563,20.556,14.52]
[1680450202631,0.06259391,20.563,20.555,47.8158]
[1680450212046,0.06259391,20.563,20.555,62.3458]
[1680450212547,0.06259391,20.563,20.552,14.51]
[1680450216549,18.54991088,20.563,20.552,14.51]
[1680450219149,14.53,20.561,20.551,0.06837314]
[1680450225048,0.06259391,20.563,20.552,14.46]
[1680450226948,18.56413418,20.563,20.552,14.46]
[1680450229355,18.56413418,20.563,20.557,14.45]
[1680450229551,0.06517138,20.567,20.56,14.45]
[1680450229747,0.06320684,20.571,20.563,14.53]
[1680450229947,14.43114983,20.574,20.563,14.53]
[1680450230150,0.0681708,20.574,20.563,14.53]
[1680450232851,14.49,20.572,20.56,14.52598495]
[1680450237154,14.52,20.572,20.56,14.58598495]
[1680450243754,14.52,20.572,20.56,29.19191312]
[1680450243954,14.52,20.572,20.56,14.58598495]
[1680450246755,0.0681708,20.574,20.563,14.38]
[1680450246959,0.0681708,20.574,20.564,44.9515]
[1680450249662,18.2284148,20.574,20.564,44.9515]
[1680450252260,18.2284148,20.574,20.566,14.52]
[1680450252461,18.160244,20.573,20.566,14.52]
[1680450252654,18.160244,20.572,20.566,14.52]
[1680450252855,18.160244,20.571,20.566,14.52]
[1680450253060,0.0681708,20.574,20.566,14.52]
[1680450253455,18.2284148,20.574,20.566,14.52]
[1680450253660,18.160244,20.573,20.566,14.52]
[1680450253859,18.160244,20.572,20.566,14.52]
[1680450254062,0.0681708,20.574,20.566,14.52]
[1680450257760,0.0681708,20.574,20.569,14.52]
[1680450257956,18.21338523,20.579,20.569,14.52]
[1680450261963,18.21338523,20.579,20.567,5.0]
[1680450262270,18.21338523,20.579,20.57,14.52]
[1680450262460,0.06099198,20.579,20.57,14.52]
[1680450262664,0.06099198,20.579,20.571,44.3239]
[1680450262859,18.20733835,20.579,20.571,44.3239]
[1680450263067,0.06099198,20.579,20.571,44.3239]
[1680450263869,14.58099198,20.579,20.571,44.3239]
[1680450264069,18.14014677,20.578,20.571,44.3239]
[1680450264369,18.14014677,20.578,20.567,14.52]
[1680450265070,14.52,20.575,20.565,45.3214]
[1680450272174,14.52,20.573,20.565,45.3214]
[1680450278478,14.52,20.576,20.566,5.0]
[1680450280176,14.52,20.576,20.565,59.8414]
[1680450282082,14.45,20.578,20.566,14.4]
[1680450288379,14.52,20.574,20.565,45.3214]
[1680450288583,14.45,20.572,20.564,0.06406797]
[1680450288777,14.45,20.569,20.564,0.06406797]
[1680450288975,14.45,20.569,20.56,14.52414904]
[1680450289181,14.45,20.569,20.559,0.06900552]
[1680450292085,14.52,20.566,20.559,0.06900552]
[1680450298086,14.45,20.563,20.559,0.06900552]
[1680450298286,14.45,20.563,20.555,48.5376]
[1680450298784,14.47,20.563,20.554,0.06149097]
[1680450301488,14.54,20.56,20.554,0.06149097]
[1680450301690,14.54,20.56,20.55,0.0630093]
[1680450302185,14.54,20.556,20.55,0.0630093]
[1680450302381,14.54,20.556,20.549,14.51291856]
[1680450302585,14.54,20.556,20.546,47.66078963]
[1680450303689,14.54,20.556,20.546,62.4719986]
[1680450310289,14.54,20.553,20.546,62.4719986]
[1680450310492,14.54,20.551,20.546,0.06448963]
[1680450310696,14.54,20.551,20.541,0.07107082]
[1680450317501,14.53774874,20.553,20.542,14.54]
[1680450317694,0.06774874,20.553,20.545,14.41]
[1680450319200,14.60774874,20.553,20.542,46.7713]
[1680450326600,0.06774874,20.553,20.544,14.45]
[1680450329007,0.06774874,20.553,20.547,14.54]
[1680450329307,0.06031222,20.557,20.547,14.54]
[1680450332011,14.60031222,20.557,20.545,14.57276209]
[1680450332609,14.54,20.553,20.545,0.06276209]
[1680450332810,14.5,20.55,20.545,0.06276209]
[1680450333010,14.5,20.55,20.542,46.7713]
[1680450336612,14.54,20.552,20.542,46.7713]
[1680450337420,62.1047,20.556,20.544,14.45]
[1680450339611,0.06031222,20.557,20.547,14.45]
[1680450345017,14.54,20.552,20.545,0.06966102]
[1680450350220,14.54,20.548,20.545,0.06966102]
[1680450350416,14.54,20.548,20.542,46.7713]
[1680450352519,14.54,20.548,20.539,14.45920119]
[1680450354722,14.5,20.545,20.539,14.45920119]
[1680450355021,14.5,20.545,20.539,14.39440689]
[1680450355221,14.5,20.545,20.535,0.07051968]
[1680450355420,14.5,20.545,20.535,9.00913364]
[1680450357717,14.5,20.545,20.535,23.74016407]
[1680450357922,14.5,20.542,20.535,14.80155011]
[1680450359428,14.5,20.539,20.535,14.80155011]
[1680450359618,14.54,20.536,20.53,0.06903795]
[1680450359923,14.39948151,20.536,20.526,14.00903983]
[1680450360126,14.57,20.536,20.527,8.94128845]
[1680450360322,14.57,20.536,20.528,8.94128845]
[1680450360621,14.57,20.533,20.526,20.01466063]
[1680450360927,14.57,20.533,20.527,8.94148036]
[1680450363719,14.57,20.53,20.526,15.01466063]
[1680450364021,14.57,20.53,20.522,46.4064]
[1680450365125,14.57,20.528,20.522,46.4064]
[1680450366126,14.57,20.531,20.522,61.21903077]
[1680450371227,14.57,20.534,20.523,13.94298992]
[1680450371428,14.57,20.534,20.523,5.0]
[1680450372734,0.06392116,20.535,20.525,14.57]
[1680450372930,14.57,20.543,20.531,14.57]
[1680450373435,14.57,20.546,20.534,14.57]
[1680450373643,14.57,20.549,20.528,14.54]
[1680450373834,0.06561106,20.546,20.531,0.06324884]
[1680450374027,0.06561106,20.546,20.537,14.57]
[1680450374233,0.06561106,20.546,20.538,48.1915]
[1680450374735,0.06561106,20.546,20.54,14.57]
[1680450374931,0.07087232,20.55,20.54,14.57]
[1680450377137,0.07087232,20.55,20.538,69.9515]
[1680450379036,21.90087232,20.55,20.538,48.1915]
[1680450380937,21.83,20.547,20.538,48.1915]
[1680450386834,21.90087232,20.55,20.538,48.1915]
[1680450389545,21.83,20.548,20.538,48.1915]
[1680450391138,21.84,20.548,20.538,48.1915]
[1680450393046,0.07087232,20.55,20.538,48.1915]
[1680450395450,0.07087232,20.55,20.539,5.0]
[1680450395653,0.07087232,20.55,20.54,21.84]
[1680450395844,0.07087232,20.55,20.541,5.0]
[1680450396553,21.84,20.557,20.543,21.81]
[1680450397552,21.84,20.557,20.543,21.87426916]
[1680450397758,21.91087462,20.557,20.543,21.87426916]
[1680450399059,0.07087462,20.557,20.546,21.76]
[1680450399260,0.07087462,20.557,20.547,47.0661]
[1680450402362,0.07087462,20.557,20.548,5.0]
[1680450404457,21.84,20.565,20.55,21.73]
[1680450405060,21.84,20.569,20.554,21.84]
[1680450405261,18.26277432,20.568,20.554,21.90218055]
[1680450407166,18.26277432,20.568,20.558,21.81]
[1680450407359,0.0645555,20.569,20.558,21.81]
[1680450408066,0.0645555,20.569,20.559,48.1729]
[1680450410467,0.0645555,20.569,20.561,21.8]
[1680450414670,0.0645555,20.569,20.559,48.1729]
[1680450414966,21.7345555,20.569,20.559,48.1729]
[1680450415178,21.68,20.566,20.559,48.1729]
[1680450415672,21.9045555,20.569,20.559,48.1729]
[1680450416473,0.0645555,20.569,20.559,48.1729]
[1680450419071,0.0645555,20.569,20.559,62.96799805]
[1680450427072,0.0645555,20.569,20.562,21.69]
[1680450427474,0.0645555,20.569,20.563,5.0]
[1680450427676,0.06807707,20.573,20.563,5.0]
[1680450429278,0.06807707,20.573,20.562,21.69]
[1680450435079,21.79,20.58,20.566,21.69]
[1680450435284,21.79,20.583,20.569,21.71]
[1680450436187,21.86114458,20.583,20.569,21.7717676]
[1680450436387,0.07114458,20.583,20.572,21.79]
[1680450440489,0.07114458,20.583,20.573,5.0]
[1680450440688,0.07114458,20.583,20.575,21.79]
[1680450444488,0.07114458,20.583,20.574,145.8]
[1680450444489,21.79,20.592,20.578,21.79]
[1680450444886,36.01400728,20.597,20.582,21.79]
[1680450445086,18.45981618,20.595,20.582,21.79]
[1680450445601,21.79,20.593,20.581,0.06419025]
[1680450446488,18.47335021,20.592,20.581,0.06419025]
[1680450447191,32.92335021,20.592,20.581,0.06419025]
[1680450447386,14.45,20.592,20.581,0.06419025]
[1680450452093,14.49,20.59,20.581,0.06419025]
[1680450452694,14.5,20.59,20.581,0.06419025]
[1680450457699,14.5,20.593,20.582,14.5]
[1680450461997,48.84540588,20.596,20.585,14.5]
[1680450463299,0.07130588,20.596,20.585,14.5]
[1680450463497,18.52008468,20.596,20.585,14.5]
[1680450463702,14.43,20.594,20.582,14.5]
[1680450464304,0.07130588,20.596,20.581,46.98919025]
[1680450464305,14.46,20.59,20.581,46.98919025]
[1680450471117,14.5,20.593,20.582,14.5]
[1680450471306,18.46822098,20.592,20.582,14.5]
[1680450471512,14.5,20.593,20.582,14.5]
[1680450472013,18.45583378,20.592,20.584,14.5]
[1680450472215,18.45583378,20.594,20.584,14.5]
[1680450476119,0.07130588,20.596,20.587,14.46]
[1680450476315,14.5,20.602,20.59,14.5]
[1680450476520,18.41509407,20.601,20.59,14.5]
[1680450480522,14.5,20.602,20.59,14.5]
[1680450482124,0.06024157,20.603,20.593,14.5]
[1680450483224,0.06024157,20.603,20.592,14.64]
[1680450485826,0.06024157,20.603,20.598,14.65]
[1680450486018,14.65,20.619,20.598,14.65]
[1680450486223,14.65,20.619,20.602,14.64]
[1680450486527,14.55,20.616,20.604,14.65]
[1680450495334,0.06475334,20.617,20.608,14.65]
[1680450495637,0.06475334,20.617,20.609,44.9134]
[1680450497941,14.61475334,20.617,20.609,44.9134]
[1680450498236,0.06475334,20.617,20.609,59.5634]
[1680450498539,0.06475334,20.617,20.612,14.65]
[1680450498739,0.06592521,20.622,20.612,14.65]
[1680450500640,0.06592521,20.622,20.615,14.65]
[1680450506644,14.6,20.621,20.611,0.06891592]
[1680450507947,14.65,20.615,20.603,14.40759592]
[1680450508143,14.59,20.613,20.592,14.65]
[1680450508343,14.59,20.613,20.593,8.91351061]
[1680450508544,14.59,20.613,20.601,14.65]
[1680450508740,14.6,20.609,20.597,14.64]
[1680450512148,14.59,20.607,20.596,0.06310763]
[1680450513450,0.07135648,20.61,20.599,14.64]
[1680450517053,0.07135648,20.61,20.601,21.86]
[1680450540372,0.07135648,20.61,20.598,145.8]
[1680450541580,0.07135648,20.61,20.6,21.87]
[1680450542080,0.07135648,20.61,20.602,21.8]
[1680450542981,0.07135648,20.61,20.606,21.87]
[1680450543181,0.06853441,20.615,20.606,21.87]
[1680450543476,48.97740504,20.618,20.607,5.0]
[1680450544682,48.97740504,20.618,20.608,21.93]
[1680450548279,48.97740504,20.618,20.605,21.99094325]
[1680450551381,48.97740504,20.618,20.607,21.93]
[1680450552287,0.06240504,20.618,20.607,21.93]
[1680450552486,0.06240504,20.618,20.608,48.1351]
[1680450556683,21.91,20.616,20.608,48.1351]
[1680450556888,21.93,20.613,20.608,48.1351]
[1680450559485,21.93,20.613,20.605,0.06094325]
[1680450573895,21.91,20.615,20.605,0.06094325]
[1680450574595,21.95,20.615,20.605,0.06094325]
[1680450577197,14.6,20.614,20.605,0.06094325]
[1680450587802,14.6,20.611,20.599,14.57]
[1680450588504,14.63,20.608,20.596,29.33527089]
[1680450588704,14.63,20.608,20.596,14.63]
[1680450592108,14.6,20.606,20.596,14.63]
[1680450592722,14.66816282,20.609,20.598,14.63]